fUST/lending_fUST_20250626
["ID","MTS","AMOUNT","RATE_DAILY","PERIOD"]
[367776197,1750927838341,-460.0,0.00017064,2]
[367776198,1750927838350,-460.0,0.00017064,2]
[367776199,1750927838360,-460.0,0.00017064,2]
[367776200,1750927838370,-211.59,0.00017064,2]
[367776201,1750927838379,-460.0,0.00017064,2]
[367776202,1750927838389,-460.0,0.00017064,2]
[367776203,1750927838399,-460.0,0.00017064,2]
[367776204,1750927838409,-460.0,0.00017064,2]
[367776205,1750927838418,-460.0,0.00017064,2]
[367776206,1750927838427,-460.0,0.00017064,2]
[367776207,1750927838437,-349.89938791,0.00017064,2]
[367776208,1750927838446,-460.0,0.00017064,2]
[367776209,1750927838455,-460.0,0.00017064,2]
[367776210,1750927838466,-460.0,0.00017064,2]
[367776211,1750927838478,-460.0,0.00017064,2]
[367776212,1750927838488,-460.0,0.00017064,2]
[367776213,1750927838497,-460.0,0.00017064,2]
[367776214,1750927838506,-460.0,0.00017064,2]
[367776215,1750927838517,-460.0,0.00017064,2]
[367776216,1750927838526,-460.0,0.00017064,2]
[367776217,1750927838535,-460.0,0.00017064,2]
[367776218,1750927838545,-460.0,0.00017064,2]
[367776219,1750927838555,-500.0,0.00017064,2]
[367776220,1750927838564,-460.0,0.00017064,2]
[367776221,1750927838573,-460.0,0.00017064,2]
[367776222,1750927838584,-460.0,0.00017064,2]
[367776223,1750927838593,-460.0,0.00017064,2]
[367776224,1750927838603,-460.0,0.00017064,2]
[367776225,1750927838616,-460.0,0.00017064,2]
[367776226,1750927838625,-460.0,0.00017064,2]
[367776227,1750927838634,-460.0,0.00017064,2]
[367776228,1750927838643,-460.0,0.00017064,2]
[367776229,1750927838653,-460.0,0.00017064,2]
[367776230,1750927838662,-460.0,0.00017064,2]
[367776231,1750927838671,-460.0,0.00017064,2]
[367776232,1750927838681,-460.0,0.00017064,2]
[367776233,1750927838691,-460.0,0.00017064,2]
[367776234,1750927838702,-460.0,0.00017064,2]
[367776235,1750927838712,-460.0,0.00017064,2]
[367776236,1750927838721,-460.0,0.00017065,2]
[367776237,1750927838733,-500.0,0.00017065,2]
[367776238,1750927838744,-476.73,0.00017065,2]
[367776239,1750927838753,-1677.84,0.00017065,2]
[367776240,1750927838763,-496.37,0.00017065,2]
[367776241,1750927838773,-460.0,0.00017065,2]
[367776242,1750927838782,-460.0,0.00017065,2]
[367776243,1750927838791,-465.78,0.00017065,2]
[367776244,1750927838801,-531.0,0.00017065,2]
[367776245,1750927838810,-460.0,0.00017065,2]
[367776246,1750927838820,-691.21,0.00017065,2]
[367776247,1750927838829,-460.0,0.00017066,2]
[367776248,1750927838839,-460.0,0.00017066,2]
[367776249,1750927838849,-581.91442889,0.00017066,2]
[367776250,1750927838859,-500.0,0.00017066,2]
[367776251,1750927838868,-603.13,0.00017067,2]
[367776252,1750927838879,-186.02820984,0.00017238,2]
[367776253,1750927838888,-378.88,0.00017328,3]
[367776254,1750927838898,-189.44,0.00017328,3]
[367776255,1750927838907,-568.34,0.00017328,3]
[367776256,1750927838917,-460.0,0.00017335,2]
[367776257,1750927838927,-460.0,0.00017335,2]
[367776258,1750927838937,-460.0,0.00017335,2]
[367776259,1750927838947,-460.0,0.00017335,2]
[367776260,1750927838957,-460.0,0.00017335,2]
[367776261,1750927838966,-515.82,0.00017335,2]
[367776262,1750927838977,-460.0,0.00017335,2]
[367776263,1750927838986,-460.0,0.00017335,2]
[367776264,1750927838996,-460.0,0.00017335,2]
[367776265,1750927839006,-460.0,0.00017335,2]
[367776266,1750927839016,-798.09,0.00017335,2]
[367776267,1750927839025,-460.0,0.00017336,2]
[367776268,1750927839037,-460.0,0.00017336,2]
[367776269,1750927839046,-399.00844229,0.00017336,2]
[367776270,1750927839056,-298.30678478,0.00017336,2]
[367776271,1750927839066,-460.0,0.00017336,2]
[367776272,1750927839075,-460.0,0.00017336,2]
[367776273,1750927839085,-854.77,0.00017336,2]
[367776274,1750927839095,-460.0,0.00017336,2]
[367776275,1750927839104,-460.0,0.00017336,2]
[367776276,1750927839114,-460.0,0.00017336,2]
[367776277,1750927839124,-460.0,0.00017336,2]
[367776278,1750927839134,-460.0,0.00017336,2]
[367776279,1750927839143,-460.0,0.00017336,2]
[367776280,1750927839153,-460.0,0.00017336,2]
[367776281,1750927839163,-1191.8,0.00017336,2]
[367776282,1750927839173,-460.0,0.00017336,2]
[367776283,1750927839182,-1457.57,0.00017336,2]
[367776284,1750927839191,-1084.82,0.00017336,2]
[367776285,1750927839201,-460.0,0.00017336,2]
[367776286,1750927839211,-460.0,0.00017336,2]
[367776287,1750927839220,-460.0,0.00017336,2]
[367776288,1750927839230,-460.0,0.00017336,2]
[367776289,1750927839239,-733.72,0.00017336,2]
[367776290,1750927839248,-460.0,0.00017336,2]
[367776291,1750927839258,-460.0,0.00017336,2]
[367776292,1750927839267,-460.0,0.00017336,2]
[367776293,1750927839277,-460.0,0.00017336,2]
[367776294,1750927839286,-460.0,0.00017336,2]
[367776295,1750927839296,-460.0,0.00017336,2]
[367776296,1750927839306,-460.0,0.00017336,2]
[367776297,1750927839316,-460.0,0.00017336,2]
[367776298,1750927839325,-460.0,0.00017336,2]
[367776299,1750927839335,-460.0,0.00017336,2]
[367776300,1750927839344,-460.0,0.00017336,2]
[367776301,1750927839354,-460.0,0.00017336,2]
[367776302,1750927839364,-460.0,0.00017336,2]
[367776303,1750927839373,-460.0,0.00017336,2]
[367776304,1750927839383,-460.0,0.00017336,2]
[367776305,1750927839393,-460.0,0.00017337,2]
[367776306,1750927839403,-460.0,0.00017337,2]
[367776308,1750927839413,-460.0,0.00017337,2]
[367776309,1750927839424,-500.0,0.00017337,2]
[367776310,1750927839433,-460.0,0.00017337,2]
[367776311,1750927839443,-460.0,0.00017337,2]
[367776312,1750927839452,-460.0,0.00017337,2]
[367776313,1750927839462,-313.62272974,0.00017337,2]
[367776314,1750927839476,-460.0,0.00017337,2]
[367776315,1750927839485,-460.0,0.00017337,2]
[367776316,1750927839496,-460.0,0.00017337,2]
[367776317,1750927839506,-460.0,0.00017337,2]
[367776318,1750927839517,-460.0,0.00017337,2]
[367776319,1750927839527,-460.0,0.00017337,2]
[367776320,1750927839536,-460.0,0.00017337,2]
[367776321,1750927839548,-460.0,0.00017337,2]
[367776322,1750927839558,-460.0,0.00017337,2]
[367776323,1750927839567,-460.0,0.00017337,2]
[367776325,1750927839576,-460.0,0.00017337,2]
[367776326,1750927839585,-460.0,0.00017337,2]
[367776327,1750927839595,-460.0,0.00017337,2]
[367776328,1750927839604,-460.0,0.00017337,2]
[367776329,1750927839614,-460.0,0.00017337,2]
[367776331,1750927839623,-460.0,0.00017337,2]
[367776333,1750927839634,-460.0,0.00017337,2]
[367776334,1750927839643,-460.0,0.00017337,2]
[367776335,1750927839652,-460.0,0.00017337,2]
[367776336,1750927839662,-460.0,0.00017337,2]
[367776337,1750927839672,-460.0,0.00017337,2]
[367776339,1750927839681,-460.0,0.00017337,2]
[367776340,1750927839691,-1352.49,0.00017337,2]
[367776341,1750927839700,-460.0,0.00017337,2]
[367776342,1750927839709,-460.0,0.00017337,2]
[367776343,1750927839720,-622.82,0.00017337,2]
[367776344,1750927839730,-460.0,0.00017337,2]
[367776346,1750927839740,-460.0,0.00017337,2]
[367776348,1750927839749,-460.0,0.00017337,2]
[367776350,1750927839759,-460.0,0.00017337,2]
[367776351,1750927839768,-379.94937188,0.00017337,2]
[367776352,1750927839779,-460.0,0.00017337,2]
[367776354,1750927839790,-497.77,0.00017338,2]
[367776355,1750927839800,-460.0,0.00017338,2]
[367776356,1750927839811,-460.0,0.00017338,2]
[367776357,1750927839820,-460.0,0.00017338,2]
[367776358,1750927839829,-460.0,0.00017338,2]
[367776359,1750927839838,-460.0,0.00017338,2]
[367776360,1750927839848,-460.0,0.00017338,2]
[367776361,1750927839858,-460.0,0.00017338,2]
[367776362,1750927839868,-460.0,0.00017338,2]
[367776363,1750927839878,-460.0,0.00017338,2]
[367776364,1750927839888,-460.0,0.00017338,2]
[367776365,1750927839897,-460.0,0.00017338,2]
[367776366,1750927839906,-460.0,0.00017338,2]
[367776367,1750927839916,-208.54323682,0.00017338,2]
[367776368,1750927839925,-460.0,0.00017338,2]
[367776369,1750927839935,-460.0,0.00017338,2]
[367776371,1750927839944,-460.0,0.00017338,2]
[367776372,1750927839955,-460.0,0.00017338,2]
[367776373,1750927839964,-498.45,0.00017338,2]
[367776374,1750927839974,-460.0,0.00017338,2]
[367776375,1750927839983,-460.0,0.00017338,2]
[367776376,1750927839993,-460.0,0.00017338,2]
[367776377,1750927840002,-460.0,0.00017338,2]
[367776378,1750927840011,-460.0,0.00017338,2]
[367776379,1750927840020,-460.0,0.00017338,2]
[367776380,1750927840030,-460.0,0.00017338,2]
[367776381,1750927840039,-460.0,0.00017338,2]
[367776382,1750927840048,-460.0,0.00017338,2]
[367776383,1750927840057,-460.0,0.00017339,2]
[367776384,1750927840067,-274.22832235,0.00017339,2]
[367776385,1750927840076,-476.73,0.00017339,2]
[367776386,1750927840086,-1677.84,0.00017339,2]
[367776387,1750927840095,-496.37,0.00017339,2]
[367776388,1750927840104,-460.0,0.00017339,2]
[367776389,1750927840114,-460.0,0.00017339,2]
[367776390,1750927840123,-465.78,0.00017339,2]
[367776391,1750927840133,-531.0,0.00017339,2]
[367776392,1750927840142,-460.0,0.00017339,2]
[367776393,1750927840152,-691.21,0.00017339,2]
[367776394,1750927840162,-460.0,0.0001734,2]
[367776395,1750927840171,-460.0,0.00017609,2]
[367776396,1750927840180,-460.0,0.00017609,2]
[367776397,1750927840190,-460.0,0.00017609,2]
[367776398,1750927840199,-515.82,0.00017609,2]
[367776399,1750927840209,-798.09,0.00017609,2]
[367776400,1750927840219,-460.0,0.0001761,2]
[367776401,1750927840227,-180.44949262,0.0001761,2]
[367776402,1750927840237,-460.0,0.0001761,2]
[367776404,1750927840247,-854.77,0.0001761,2]
[367776405,1750927840256,-460.0,0.0001761,2]
[367776407,1750927840265,-460.0,0.0001761,2]
[367776408,1750927840275,-460.0,0.0001761,2]
[367776409,1750927840284,-1191.8,0.0001761,2]
[367776410,1750927840294,-1457.57,0.0001761,2]
[367776411,1750927840303,-1084.82,0.0001761,2]
[367776412,1750927840312,-460.0,0.0001761,2]
[367776413,1750927840321,-460.0,0.0001761,2]
[367776414,1750927840331,-460.0,0.0001761,2]
[367776415,1750927840340,-733.72,0.0001761,2]
[367776416,1750927840349,-460.0,0.0001761,2]
[367776417,1750927840358,-380.05,0.0001761,2]
[367776418,1750927840367,-233.07744344,0.0001761,2]
[367776419,1750927840377,-460.0,0.0001761,2]
[367776420,1750927840386,-460.0,0.0001761,2]
[367776421,1750927840395,-460.0,0.0001761,2]
[367776422,1750927840404,-460.0,0.0001761,2]
[367776423,1750927840413,-460.0,0.0001761,2]
[367776424,1750927840423,-460.0,0.0001761,2]
[367776425,1750927840432,-460.0,0.00017611,2]
[367776426,1750927840441,-460.0,0.00017611,2]
[367776427,1750927840452,-460.0,0.00017611,2]
[367776428,1750927840461,-460.0,0.00017611,2]
[367776429,1750927840473,-460.0,0.00017611,2]
[367776430,1750927840482,-460.0,0.00017611,2]
[367776431,1750927840491,-460.0,0.00017611,2]
[367776432,1750927840501,-460.0,0.00017611,2]
[367776433,1750927840511,-460.0,0.00017611,2]
[367776434,1750927840520,-460.0,0.00017611,2]
[367776435,1750927840529,-460.0,0.00017611,2]
[367776436,1750927840538,-460.0,0.00017611,2]
[367776437,1750927840548,-460.0,0.00017611,2]
[367776438,1750927840557,-460.0,0.00017611,2]
[367776439,1750927840567,-460.0,0.00017611,2]
[367776440,1750927840577,-460.0,0.00017611,2]
[367776441,1750927840586,-460.0,0.00017611,2]
[367776442,1750927840595,-460.0,0.00017611,2]
[367776443,1750927840605,-1352.49,0.00017611,2]
[367776444,1750927840614,-460.0,0.00017611,2]
[367776445,1750927840623,-622.82,0.00017611,2]
[367776446,1750927840632,-460.0,0.00017611,2]
[367776447,1750927840643,-460.0,0.00017611,2]
[367776448,1750927840652,-460.0,0.00017611,2]
[367776449,1750927840661,-391.9,0.00017612,2]
[367776450,1750927840670,-460.0,0.00017612,2]
[367776451,1750927840679,-460.0,0.00017612,2]
[367776452,1750927840688,-460.0,0.00017612,2]
[367776453,1750927840698,-460.0,0.00017612,2]
[367776454,1750927840707,-460.0,0.00017612,2]
[367776455,1750927840716,-460.0,0.00017612,2]
[367776456,1750927840726,-440.87,0.00017612,2]
[367776457,1750927840736,-460.0,0.00017612,2]
[367776458,1750927840747,-460.0,0.00017612,2]
[367776459,1750927840756,-225.41210402,0.00017612,2]
[367776460,1750927840765,-460.0,0.00017612,2]
[367776461,1750927840775,-460.0,0.00017612,2]
[367776462,1750927840784,-460.0,0.00017613,2]
[367776463,1750927840793,-476.73,0.00017613,2]
[367776464,1750927840803,-1677.84,0.00017613,2]
[367776465,1750927840812,-496.37,0.00017613,2]
[367776466,1750927840821,-460.0,0.00017613,2]
[367776467,1750927840830,-465.78,0.00017613,2]
[367776468,1750927840839,-531.0,0.00017613,2]
[367776469,1750927840848,-460.0,0.00017613,2]
[367776470,1750927840858,-691.21,0.00017613,2]
[367776471,1750927840868,-460.0,0.00017883,2]
[367776472,1750927840879,-460.0,0.00017883,2]
[367776473,1750927840888,-515.82,0.00017883,2]
[367776474,1750927840897,-798.09,0.00017883,2]
[367776475,1750927840907,-460.0,0.00017884,2]
[367776476,1750927840916,-460.0,0.00017884,2]
[367776477,1750927840925,-854.77,0.00017884,2]
[367776478,1750927840935,-590.91809254,0.00017884,2]
[367776479,1750927840944,-460.0,0.00017884,2]
[367776480,1750927840954,-460.0,0.00017884,2]
[367776481,1750927841075,-1191.8,0.00017884,2]
[367776482,1750927841086,-1457.57,0.00017884,2]
[367776483,1750927841095,-1084.82,0.00017884,2]
[367776484,1750927841104,-460.0,0.00017884,2]
[367776485,1750927841114,-460.0,0.00017884,2]
[367776486,1750927841123,-460.0,0.00017884,2]
[367776487,1750927841133,-733.72,0.00017884,2]
[367776488,1750927841143,-460.0,0.00017884,2]
[367776489,1750927841153,-460.0,0.00017884,2]
[367776490,1750927841163,-460.0,0.00017884,2]
[367776491,1750927841173,-508.24,0.00017884,2]
[367776492,1750927841183,-460.0,0.00017884,2]
[367776493,1750927841192,-460.0,0.00017884,2]
[367776494,1750927841202,-460.0,0.00017884,2]
[367776495,1750927841212,-460.0,0.00017885,2]
[367776496,1750927841221,-460.0,0.00017885,2]
[367776497,1750927841231,-460.0,0.00017885,2]
[367776498,1750927841241,-460.0,0.00017885,2]
[367776499,1750927841250,-460.0,0.00017885,2]
[367776500,1750927841260,-495.84,0.00017885,2]
[367776501,1750927841270,-460.0,0.00017885,2]
[367776502,1750927841280,-460.0,0.00017885,2]
[367776503,1750927841290,-460.0,0.00017885,2]
[367776504,1750927841300,-1352.49,0.00017885,2]
[367776505,1750927841309,-370.41603949,0.00017885,2]
[367776506,1750927841318,-622.82,0.00017885,2]
[367776507,1750927841328,-460.0,0.00017885,2]
[367776508,1750927841338,-529.6,0.00017885,2]
[367776509,1750927841347,-460.0,0.00017886,2]
[367776510,1750927841357,-460.0,0.00017886,2]
[367776511,1750927841366,-460.0,0.00017886,2]
[367776512,1750927841375,-417.11375808,0.00017886,2]
[367776513,1750927841384,-460.0,0.00017886,2]
[367776514,1750927841394,-460.0,0.00017886,2]
[367776515,1750927841404,-476.73,0.00017887,2]
[367776516,1750927841413,-1677.84,0.00017887,2]
[367776517,1750927841422,-496.37,0.00017887,2]
[367776518,1750927841432,-460.0,0.00017887,2]
[367776519,1750927841441,-465.78,0.00017887,2]
[367776520,1750927841450,-531.0,0.00017887,2]
[367776521,1750927841459,-460.0,0.00017887,2]
[367776522,1750927841471,-691.21,0.00017887,2]
[367776523,1750927841480,-2220.24686138,0.000179,2]
[367776524,1750927841489,-163.79,0.00018,3]
[367776525,1750927841498,-163.79,0.00018,3]
[367776526,1750927841508,-163.79,0.00018,3]
[367776527,1750927841518,-163.79,0.00018,3]
[367776528,1750927841528,-500.0,0.00018027,2]
[367776529,1750927841538,-504.18410988,0.00018085,2]
[367776530,1750927841549,-501.20861726,0.00018124,2]
[367776531,1750927841559,-500.22618135,0.00018124,2]
[367776532,1750927841569,-2220.24686124,0.00018141,2]
[367776533,1750927841579,-460.0,0.00018157,2]
[367776534,1750927841588,-515.82,0.00018157,2]
[367776535,1750927841597,-798.09,0.00018157,2]
[367776536,1750927841606,-854.77,0.00018158,2]
[367776537,1750927841616,-1191.8,0.00018158,2]
[367776538,1750927841625,-1457.57,0.00018158,2]
[367776539,1750927841634,-1084.82,0.00018158,2]
[367776540,1750927841643,-460.0,0.00018158,2]
[367776541,1750927841652,-733.72,0.00018158,2]
[367776542,1750927841662,-460.0,0.00018158,2]
[367776543,1750927841671,-460.0,0.00018158,2]
[367776544,1750927841680,-460.0,0.00018158,2]
[367776545,1750927841690,-460.0,0.00018158,2]
[367776546,1750927841699,-460.0,0.00018158,2]
[367776547,1750927841708,-460.0,0.00018158,2]
[367776548,1750927841718,-460.0,0.00018159,2]
[367776549,1750927841727,-460.0,0.00018159,2]
[367776550,1750927841737,-460.0,0.00018159,2]
[367776551,1750927841747,-460.0,0.00018159,2]
[367776552,1750927841756,-460.0,0.00018159,2]
[367776553,1750927841765,-460.0,0.00018159,2]
[367776554,1750927841774,-1352.49,0.00018159,2]
[367776555,1750927841784,-622.82,0.00018159,2]
[367776556,1750927841793,-460.0,0.00018159,2]
[367776557,1750927841802,-460.0,0.0001816,2]
[367776558,1750927841811,-460.0,0.0001816,2]
[367776559,1750927841820,-460.0,0.0001816,2]
[367776560,1750927841831,-460.0,0.0001816,2]
[367776561,1750927841840,-476.73,0.00018161,2]
[367776562,1750927841848,-1677.84,0.00018161,2]
[367776563,1750927841858,-496.37,0.00018161,2]
[367776564,1750927841867,-460.0,0.00018161,2]
[367776565,1750927841876,-465.78,0.00018161,2]
[367776566,1750927841885,-531.0,0.00018161,2]
[367776567,1750927841894,-460.0,0.00018161,2]
[367776568,1750927841903,-691.21,0.00018161,2]
[367776569,1750927841912,-160.0,0.00018168,2]
[367776570,1750927841922,-160.0,0.00018168,2]
[367776571,1750927841931,-160.0,0.00018168,2]
[367776572,1750927841941,-425.22527846,0.00018168,2]
[367776573,1750927841950,-846.92323443,0.00018168,2]
[367776574,1750927841960,-160.0,0.00018168,2]
[367776575,1750927841969,-230.24506774,0.00018168,2]
[367776576,1750927841979,-160.0,0.00018168,2]
[367776577,1750927841989,-836.92866116,0.00018168,2]
[367776578,1750927841998,-213.72380786,0.00018168,2]
[367776579,1750927842008,-12560.17507789,0.00018169,2]
[367776580,1750927842017,-500.0,0.00018213,2]
[367776581,1750927842026,-500.0,0.00018213,2]
[367776582,1750927842035,-500.0,0.00018213,2]
[367776583,1750927842044,-518.58148547,0.00018213,2]
[367776584,1750927842054,-179.84230171,0.00018213,2]
[367776585,1750927842063,-500.0,0.00018213,2]
[367776586,1750927842072,-500.84850324,0.00018213,2]
[367776587,1750927842082,-208.0989754,0.00018213,2]
[367776588,1750927842091,-500.0,0.00018213,2]
[367776589,1750927842101,-500.30344921,0.00018213,2]
[367776590,1750927842110,-500.41457115,0.00018213,2]
[367776591,1750927842120,-500.0,0.00018213,2]
[367776592,1750927842129,-500.19571875,0.00018213,2]
[367776593,1750927842139,-166.22610356,0.00018213,2]
[367776594,1750927842148,-500.0,0.00018213,2]
[367776595,1750927842157,-500.0,0.00018251,2]
[367776596,1750927842167,-500.0,0.00018251,2]
[367776597,1750927842176,-500.0,0.00018286,2]
[367776598,1750927842186,-503.61778586,0.00018286,2]
[367776599,1750927842196,-500.0,0.00018356,2]
[367776600,1750927842205,-500.0,0.00018356,2]
[367776601,1750927842214,-500.41164183,0.00018356,2]
[367776602,1750927842235,-2220.24686124,0.00018383,2]
[367776603,1750927842246,-460.0,0.00018431,2]
[367776604,1750927842256,-515.82,0.00018431,2]
[367776605,1750927842266,-798.09,0.00018431,2]
[367776606,1750927842276,-854.77,0.00018432,2]
[367776607,1750927842286,-1191.8,0.00018432,2]
[367776608,1750927842296,-1457.57,0.00018432,2]
[367776609,1750927842306,-1084.82,0.00018432,2]
[367776611,1750927842315,-460.0,0.00018432,2]
[367776613,1750927842325,-733.72,0.00018432,2]
[367776614,1750927842336,-460.0,0.00018432,2]
[367776615,1750927842346,-460.0,0.00018432,2]
[367776617,1750927842355,-460.0,0.00018432,2]
[367776618,1750927842365,-460.0,0.00018432,2]
[367776619,1750927842374,-460.0,0.00018432,2]
[367776620,1750927842384,-460.0,0.00018432,2]
[367776621,1750927842393,-460.0,0.00018433,2]
[367776622,1750927842404,-460.0,0.00018433,2]
[367776623,1750927842414,-460.0,0.00018433,2]
[367776624,1750927842423,-460.0,0.00018433,2]
[367776625,1750927842433,-460.0,0.00018433,2]
[367776627,1750927842443,-460.0,0.00018433,2]
[367776628,1750927842452,-1352.49,0.00018433,2]
[367776629,1750927842462,-622.82,0.00018433,2]
[367776630,1750927842476,-460.0,0.00018433,2]
[367776631,1750927842485,-460.0,0.00018434,2]
[367776634,1750927842495,-460.0,0.00018434,2]
[367776635,1750927842505,-460.0,0.00018434,2]
[367776637,1750927842515,-460.0,0.00018434,2]
[367776638,1750927842524,-476.73,0.00018435,2]
[367776639,1750927842534,-1677.84,0.00018435,2]
[367776640,1750927842545,-496.37,0.00018435,2]
[367776641,1750927842555,-460.0,0.00018435,2]
[367776642,1750927842566,-465.78,0.00018435,2]
[367776644,1750927842575,-531.0,0.00018435,2]
[367776645,1750927842585,-396.75,0.00018435,2]
[367776646,1750927842595,-691.21,0.00018435,2]
[367776647,1750927842604,-500.0,0.00018435,2]
[367776648,1750927842614,-500.0,0.00018531,2]
[367776650,1750927842625,-583.91756294,0.00018531,2]
[367776651,1750927842634,-168.0,0.0001854,2]
[367776652,1750927842644,-500.0,0.00018557,2]
[367776653,1750927842654,-500.0,0.00018557,2]
[367776654,1750927842664,-500.79448408,0.00018594,2]
[367776655,1750927842674,-500.79180102,0.00018594,2]
[367776656,1750927842685,-500.0,0.00018594,2]
[367776657,1750927842694,-511.32697788,0.00018606,2]
[367776658,1750927842704,-500.0,0.00018606,2]
[367776659,1750927842713,-2220.24686124,0.00018624,2]
[367776660,1750927842723,-420.0,0.00018632,2]
[367776661,1750927842733,-500.5167576,0.00018691,2]
[367776662,1750927842743,-500.0,0.00018691,2]
[367776663,1750927842753,-757.76,0.00018698,3]
[367776664,1750927842763,-378.88,0.00018698,3]
[367776665,1750927842773,-460.0,0.00018705,2]
[367776666,1750927842782,-515.82,0.00018705,2]
[367776667,1750927842791,-798.09,0.00018705,2]
[367776668,1750927842801,-854.77,0.00018706,2]
[367776669,1750927842810,-1191.8,0.00018706,2]
[367776670,1750927842819,-1457.57,0.00018706,2]
[367776671,1750927842829,-1084.82,0.00018706,2]
[367776672,1750927842838,-220.49,0.00018706,2]
[367776673,1750927842848,-733.72,0.00018706,2]
[367776674,1750927842858,-460.0,0.00018706,2]
[367776675,1750927842867,-460.0,0.00018706,2]
[367776676,1750927842877,-460.0,0.00018706,2]
[367776677,1750927842887,-460.0,0.00018706,2]
[367776678,1750927842897,-460.0,0.00018706,2]
[367776679,1750927842906,-460.0,0.00018706,2]
[367776680,1750927842915,-462.33649934,0.00018707,2]
[367776681,1750927842924,-460.0,0.00018707,2]
[367776682,1750927842934,-460.0,0.00018707,2]
[367776683,1750927842943,-460.0,0.00018707,2]
[367776684,1750927842953,-460.0,0.00018707,2]
[367776685,1750927842962,-460.0,0.00018707,2]
[367776686,1750927842972,-1352.49,0.00018707,2]
[367776687,1750927842981,-622.82,0.00018707,2]
[367776688,1750927842990,-460.0,0.00018707,2]
[367776689,1750927842999,-460.0,0.00018708,2]
[367776691,1750927843008,-460.0,0.00018708,2]
[367776693,1750927843018,-460.0,0.00018708,2]
[367776695,1750927843028,-460.0,0.00018708,2]
[367776697,1750927843037,-476.73,0.00018709,2]
[367776699,1750927843047,-1677.84,0.00018709,2]
[367776701,1750927843055,-496.37,0.00018709,2]
[367776703,1750927843065,-460.0,0.00018709,2]
[367776705,1750927843074,-465.78,0.00018709,2]
[367776707,1750927843084,-531.0,0.00018709,2]
[367776708,1750927843094,-691.21,0.00018709,2]
[367776709,1750927843103,-580.8694489,0.00018761,2]
[367776710,1750927843114,-298.58513118,0.00018761,2]
[367776711,1750927843123,-1000.0,0.00018761,2]
[367776712,1750927843132,-501.01948852,0.00018761,2]
[367776713,1750927843142,-1000.0,0.00018834,2]
[367776714,1750927843152,-168.0,0.00018843,2]
[367776715,1750927843161,-159.73436254,0.00018861,2]
[367776716,1750927843171,-2220.24686124,0.00018866,2]
[367776717,1750927843180,-155.95160573,0.00018891,2]
[367776718,1750927843190,-500.0,0.00018891,2]
[367776719,1750927843199,-500.0,0.00018891,2]
[367776720,1750927843209,-500.0,0.00018891,2]
[367776721,1750927843218,-500.0,0.00018891,2]
[367776722,1750927843228,-500.0,0.00018891,2]
[367776723,1750927843238,-500.0,0.00018891,2]
[367776724,1750927843248,-500.0,0.00018891,2]
[367776725,1750927843259,-500.0,0.00018891,2]
[367776726,1750927843268,-500.0,0.00018891,2]